Cogmind - Beta 15 @@@ ROGUE MODE // 2025.09.10 @ 09:41:39 Player: winnking222 Result: Destroyed by DAS Turret with DAS Cannon Performance ------------- Evolutions (1) 500 Regions Visited (5) 1000 Robots Destroyed (85) 425 Value Destroyed (1825) 1825 Prototype IDs (30) 600 Alien Tech Used (0) 0 Bonus (448) 448 TOTAL SCORE: 4798 Bonus ------- High Alert Combat Kills 46 Follower Combat Kills 132 Aligned with FarCom 300 Friendly Fire -30 Cogmind --------- Core Integrity 0/400 Matter 37/300 Energy 100/100 System Corruption 0% Temperature Cool (25) Movement Core (350) Ox6 Location -9/Exiles Parts ------- > --- POWER (1) -------- (None) > --- PROPULSION (3) --- (None) > --- UTILITY (2) ------ Salvage Targeting Computer Hardened Medium Armor Plating > --- WEAPON (3) ------- Improved Assault Rifle 8R-AWN's Boregun Rocket Launcher > --- INVENTORY (5) ---- Heavy Assault Rifle Improved Assault Rifle 8R-AWN's Boregun Peak State ------------ > --- POWER ------------ Cooled Ion Engine > --- PROPULSION ------- Light Treads Improved Treads Wheel > --- UTILITY ---------- High-capacity Storage Unit Hardened Medium Armor Plating > --- WEAPON ----------- Heavy Assault Rifle Improved Assault Rifle Improved Assault Rifle > --- INVENTORY -------- Nuclear Core Fission Core Light Fission Core Army-in-a-Box Chronowheel YOLO Cannon [Rating: 29] Favorites ----------- Power Cooled Ion Engine Engine Cooled Ion Engine Power Core Light Nuclear Core Propulsion Light Treads Treads Light Treads Leg Aluminum Leg Wheel Wheel Utility Hardened Medium Armor Plating Device Seismic Detector Storage High-capacity Storage Unit Processor Salvage Targeting Computer Protection Hardened Medium Armor Plating Weapon High-powered Shotgun Ballistic Gun High-powered Shotgun Launcher Rocket Launcher Build | -11 -10 -10 -9 -9 -9 ------- Run | Yrd Mat Min Mat Min Exi Slots Evolved 2 | . . . 2 . . Power . | . . . . . . Propulsion 1 | . . . 1 . . Utility . | . . . . . . Weapon 1 | . . . 1 . . Parts Attached 55 | 7 8 5 19 3 13 Power 5 | 1 1 1 2 . . Engine 4 | 1 1 1 1 . . Core 1 | . . . 1 . . Reactor . | . . . . . . Propulsion 17 | 2 1 2 8 2 2 Treads 10 | 2 . . 5 1 2 Leg 3 | . . 2 1 . . Wheel 4 | . 1 . 2 1 . Hover . | . . . . . . Flight . | . . . . . . Utility 13 | 2 3 . 2 1 5 Device 5 | 1 1 . . . 3 Storage 4 | 1 2 . 1 . . Processor 1 | . . . . . 1 Hackware . | . . . . . . Protection 3 | . . . 1 1 1 Artifact . | . . . . . . Weapon 20 | 2 3 2 7 . 6 Energy Gun . | . . . . . . Energy Cannon . | . . . . . . Ballistic Gun 18 | 2 2 2 7 . 5 Ballistic Cannon . | . . . . . . Launcher 2 | . 1 . . . 1 Special Weapon . | . . . . . . Impact Weapon . | . . . . . . Slashing Weapon . | . . . . . . Piercing Weapon . | . . . . . . Special Melee Weapon . | . . . . . . Unidentified Prototypes 6 | . . . 2 . 4 Parts Lost 18 | . 7 3 . . 8 Power 3 | . 1 1 . . 1 Propulsion 8 | . 2 1 . . 5 Utility 2 | . 2 . . . . Weapon 5 | . 2 1 . . 2 Highest Loss Streak 6 | . 2 2 . . 6 To Critical Strikes 4 | . . . . . 4 Average Backups 14 | 4 9 11 21 21 8 Power . | . 1 1 . . 1 Propulsion 3 | 2 4 3 3 4 1 Utility 4 | . 1 4 8 7 2 Weapon 5 | . 2 2 9 10 3 Tool/Special . | . . . . . . Unused Backups 33 | . 1 . 13 1 18 Power 3 | . . . . . 3 Propulsion 4 | . . . 3 . 1 Utility 10 | . 1 . 4 . 5 Weapon 15 | . . . 6 1 8 Tool/Special 1 | . . . . . 1 Average Slot Usage (%) 93 | . 90 78 98 100 95 Engine 9 | . 11 10 6 11 9 Core 1 | . . . 4 . . Treads 19 | . 17 . 20 31 24 Leg 6 | . . 24 7 . . Wheel 4 | . 6 . 4 1 6 Device 1 | . 10 . . . . Storage 10 | . 14 14 11 11 6 Processor 1 | . . . . . 4 Protection 6 | . . . 10 11 10 Ballistic Gun 30 | . 27 27 32 33 29 Peak Build Rating 29 | 7 8 9 25 25 29 Average Rating 17 | 5 6 7 22 24 22 On Entrance 11 | . 7 6 9 24 25 Naked Turns . | . . . . . . Heaviest Build 105 | 12 49 49 105 105 105 Greatest Support 63 | 40 40 20 60 63 63 Greatest Overweight (x) 15 | . 4 15 6 10 10 Average Overweight (x) 3 | . 2 2 2 2 4 Largest Inventory Capacity 25 | 8 20 20 25 25 25 Average Capacity 20 | 7 18 20 24 25 14 Most Carried 25 | 7 13 16 25 25 25 Average Carried 16 | 4 9 12 24 24 10 Final Capacity 25 | 8 20 20 25 25 5 Final Carried 25 | 6 11 16 25 25 3 Class Distribution -------------------- 60% | Tank 36% | Mutant Dominant Class ---------------- Mutant | -10/Materials Mutant | -10/Mines Tank | -9/Materials Tank | -9/Mines Tank | -9/Exiles Resources | -11 -10 -10 -9 -9 -9 ----------- Run | Yrd Mat Min Mat Min Exi Matter Collected 2612 | 282 605 293 936 56 440 Remotely . | . . . . . . Salvage Created 2713 | 66 737 252 1497 31 130 Parts 204 | 14 51 16 107 5 11 Haulers Intercepted 3 | . . . 3 . . Recyclers Shooed 8 | . 1 3 4 . . Parts Field Recycled . | . . . . . . Retrieved Matter . | . . . . . . Parts Self-Destructed . | . . . . . . Prevented . | . . . . . . Kills | -11 -10 -10 -9 -9 -9 ------- Run | Yrd Mat Min Mat Min Exi Combat Hostiles Destroyed 62 | . 15 8 31 3 5 Guns 52 | . 11 5 31 3 2 AOE 10 | . 4 3 . . 3 Classes Destroyed 12 | 1 6 1 3 . 1 Worker 6 | . 4 . 2 . . Builder 3 | . 2 . 1 . . Tunneler 4 | 3 . . 1 . . Hauler 3 | . . . 3 . . Recycler 4 | . . 1 3 . . Operator 2 | . 1 . 1 . . Watcher 5 | . 3 . 2 . . Swarmer 19 | . 2 6 8 3 . Grunt 30 | . 13 2 15 . . Brawler 1 | . . . 1 . . Sentry 7 | . . . 7 . . Assembled 4 | . . . . . 4 Best Kill Streak 7 | 2 5 3 7 3 3 Combat Bots Only 6 | . 3 3 6 3 3 Max Kills in Single Turn 3 | 1 2 1 3 1 2 Gunslinging 1 | . . . 1 . . Exploded 2 | . 2 1 . . 2 Melee . | . . . . . . Uniques/NPCs Destroyed 1 | . . . . . 1 8R-AWN (-9/Exiles) Combat | -11 -10 -10 -9 -9 -9 -------- Run | Yrd Mat Min Mat Min Exi Hostile Shots Fired 345 | . 100 57 106 8 74 Missed 91 | . 31 19 29 2 10 Hits 254 | . 69 38 77 6 64 Projectile 254 | . 69 38 77 6 64 Critical Strikes 22 | . . 1 1 . 20 Part Disruptions 1 | . . . 1 . . Damage Taken 3509 | . 828 349 834 52 1446 Core 662 | . 144 77 72 . 369 Absorbed by Shields . | . . . . . . Core Remaining (%) 55 | 100 . 11 . . . Volleys Fired 227 | 3 78 29 67 3 47 Largest 3 | 2 2 2 3 3 3 Hottest 86 | 40 50 50 75 75 86 Shots Fired 514 | 6 143 54 195 9 107 Gun 486 | 6 133 50 195 9 93 Cannon . | . . . . . . Launcher 28 | . 10 4 . . 14 Special . | . . . . . . Kinetic 486 | 6 133 50 195 9 93 Thermal . | . . . . . . Explosive 28 | . 10 4 . . 14 Electromagnetic . | . . . . . . Robot Hit Streak 22 | 2 16 11 7 2 22 Robot Miss Streak 10 | 2 5 3 10 2 2 Penetration Max . | . . . . . . Secondary Targets 9 | . 2 2 5 . . Max Gunslinging Chain 1 | . 1 1 1 . . Shots Hit Robots 308 | 2 84 25 124 4 69 Core Hits 171 | 3 50 15 71 3 29 Critical Kills 1 | . . 1 . . . Critical Parts Destroyed . | . . . . . . Critical Strikes 1 | . . 1 . . . Destroy 1 | . . 1 . . . Melee Attacks . | . . . . . . Impact . | . . . . . . Slashing . | . . . . . . Piercing . | . . . . . . Sneak Attacks . | . . . . . . Combat Hostiles . | . . . . . . Follow-up Attacks . | . . . . . . Damage Inflicted 5096 | 33 1260 408 1917 46 1432 Guns 3968 | 33 800 209 1850 46 1030 Cannons . | . . . . . . Explosions 1043 | . 443 198 . . 402 Melee . | . . . . . . Ramming 85 | . 17 1 67 . . Kinetic 3968 | 33 800 209 1850 46 1030 Thermal . | . . . . . . Explosive 1043 | . 443 198 . . 402 Electromagnetic . | . . . . . . Impact . | . . . . . . Slashing . | . . . . . . Piercing . | . . . . . . Highest Corruption 5 | . 5 5 . . . Average Corruption 4 | . 4 5 . . . Corruption Purged . | . . . . . . Corruption Blocked . | . . . . . . Effects 66 | . 33 33 . . . Message Errors 17 | . 5 12 . . . Matter Fused 19 | . 12 7 . . . Heat Flow Errors 6 | . 3 3 . . . Energy Discharges 6 | . 3 3 . . . Parts Rejected 1 | . . 1 . . . Data Loss (minor) 8 | . 6 2 . . . Data Loss (major) 4 | . 2 2 . . . Misfires 3 | . . 3 . . . Weapon Failures 2 | . 2 . . . . Overload Shots . | . . . . . . Overflow Damage 19 | . 2 7 . . 10 Projectiles . | . . . . . . Explosions 19 | . 2 7 . . 10 Melee . | . . . . . . Knockbacks . | . . . . . . Impact . | . . . . . . Kinetic . | . . . . . . Secondary . | . . . . . . Self-Inflicted Damage 25 | . 13 . 12 . . Shots 1 | . 1 . . . . Rammed 8 | . 1 . 7 . . Targets Rammed 10 | . 1 1 8 . . Kicked 1 | . . 1 . . . Crushed 1 | . . . 1 . . Highest Temperature 262 | . 262 232 228 30 43 Average Temperature 46 | . 58 77 43 16 19 Received Heat Transfer 717 | . 396 96 225 . . Effects 3 | . 3 . . . . Interference 3 | . 3 . . . . Siege Activations . | . . . . . . Martial Activations . | . . . . . . Shielding Activations . | . . . . . . Robots Disrupted . | . . . . . . Combat Hostiles . | . . . . . . Robots Corrupted . | . . . . . . Combat Hostiles . | . . . . . . Parts Fried . | . . . . . . Impact Corruptions . | . . . . . . Robots Melted . | . . . . . . Combat Hostiles . | . . . . . . Parts Melted . | . . . . . . Heat Transferred . | . . . . . . Parts Sabotaged . | . . . . . . Parts Stolen . | . . . . . . Parts Stripped . | . . . . . . Power Chain Reactions . | . . . . . . Alert | -11 -10 -10 -9 -9 -9 ------- Run | Yrd Mat Min Mat Min Exi Maximum Alert Level 2 | . . . 2 . . Low Security (%) 77 | 100 100 100 34 100 . Level 1 17 | . . . 49 . . Level 2 5 | . . . 15 . . Level 3 . | . . . . . . Level 4 . | . . . . . . Level 5 . | . . . . . . High Security . | . . . . . . Max Security . | . . . . . . Peak Influence 521 | 5 103 65 521 88 . Initial 88 | . . 7 . 88 . Average 94 | 1 40 8 231 14 . Influence Increases 1907 | 15 508 210 1104 70 . Destroy 0b10 Robot/C 1260 | . 300 160 740 60 . Destroy 0b10 Robot/NC 140 | 15 50 5 70 . . Destroy Leader 318 | . 76 30 202 10 . Allied During Kill 31 | . . . 31 . . Successful Hack 37 | . 8 . 29 . . Disable Machine 30 | . . . 30 . . Destroy Structure 76 | . 59 15 2 . . Lose Combat Pursuer 15 | . 15 . . . . Influence Decreases 1907 | 15 489 229 877 297 . Entered New Map 151 | . . 12 . 139 . Time Decay 1327 | 15 422 187 545 158 . Lost Part 97 | . 67 30 . . . Lost Ally 32 | . . . 32 . . Purge Threat 300 | . . . 300 . . Squads Dispatched 10 | . 4 . 6 . . Investigation 5 | . 2 . 3 . . Extermination . | . . . . . . Reinforcement 5 | . 2 . 3 . . Assault . | . . . . . . Garrison . | . . . . . . Intercept . | . . . . . . Searches Triggered . | . . . . . . Construction Impeded . | . . . . . . Haulers Reinforced . | . . . . . . Active Scanning Responses . | . . . . . . Cargo Convoy Interrupts . | . . . . . . Stealth | -11 -10 -10 -9 -9 -9 --------- Run | Yrd Mat Min Mat Min Exi Distress Signals 5 | . 3 . 2 . . Communications Jammed . | . . . . . . Distress Signals . | . . . . . . Times Spotted 93 | . 23 8 52 3 7 Peak Tracking Total 10 | . 4 3 7 3 10 Tactical Retreats 3 | . 1 . . . 2 Traps | -11 -10 -10 -9 -9 -9 ------- Run | Yrd Mat Min Mat Min Exi Traps Triggered 8 | . 5 . 3 . . Indirectly . | . . . . . . Trap Hack Attempts . | . . . . . . Triggered . | . . . . . . Disarmed . | . . . . . . Reprogrammed . | . . . . . . Reused 1 | . . . . . 1 Traps Extracted . | . . . . . . Installed 1 | . . . . . 1 Triggered . | . . . . . . Most Traps Carried 3 | . . 3 3 3 3 Machines | -11 -10 -10 -9 -9 -9 ---------- Run | Yrd Mat Min Mat Min Exi Machines Disabled 9 | . . . 2 . 7 Max in Single Turn 1 | . . . 1 . 1 Machines Repaired . | . . . . . . Machines Dismantled . | . . . . . . Machines Sabotaged . | . . . . . . Overloaded Fab Kills . | . . . . . . Hacking | -11 -10 -10 -9 -9 -9 --------- Run | Yrd Mat Min Mat Min Exi Machines Accessed 15 | . 5 . 8 . 2 Terminals 12 | . 5 . 7 . . Fabricators . | . . . . . . Repair Stations . | . . . . . . Recycling Units . | . . . . . . Scanalyzers 1 | . . . 1 . . Garrison Access . | . . . . . . Total Hacks 36 | . 13 . 20 . 3 Successful 25 | . 9 . 13 . 3 Failed 11 | . 4 . 7 . . Catastrophic 1 | . . . 1 . . Database Lockouts . | . . . . . . Manual 21 | . 11 . 9 . 1 Terminals 29 | . 13 . 16 . . Fabricators . | . . . . . . Repair Stations . | . . . . . . Recycling Units . | . . . . . . Scanalyzers 4 | . . . 4 . . Garrison Access . | . . . . . . Terminal Hacks 8 | . 1 . 4 . 3 Record 2 | . . . . . 2 Emergency Access Points 1 | . . . 1 . . Unreport Threat 2 | . . . 2 . . Zone Layout 2 | . 1 . 1 . . Proto ID Catalog 1 | . . . . . 1 Fabricator Hacks . | . . . . . . Repair Station Hacks . | . . . . . . Recycling Unit Hacks . | . . . . . . Scanalyzer 3 | . . . 3 . . Insert Component 2 | . . . 2 . . Analyze 1 | . . . 1 . . Garrison Access Hacks . | . . . . . . Unauthorized Hacks 14 | . 8 . 6 . . Terminals 14 | . 8 . 6 . . Botnet 4 | . 3 . 1 . . Skim 10 | . 5 . 5 . . Fabricators . | . . . . . . Repair Stations . | . . . . . . Recycling Units . | . . . . . . Scanalyzers . | . . . . . . Garrison Access . | . . . . . . Data Cores Recovered 1 | . . . 1 . . Used 1 | . . . 1 . . Hacking Detections 7 | . 3 . 4 . . Full Trace Events 3 | . 1 . 2 . . Feedback Events . | . . . . . . Feedback Blocked . | . . . . . . Robot Schematics Acquired . | . . . . . . Robots Built . | . . . . . . Authchips . | . . . . . . Time . | . . . . . . Total Robot Build Rating . | . . . . . . Part Schematics Acquired . | . . . . . . Parts Built . | . . . . . . Authchips . | . . . . . . Time . | . . . . . . Total Part Build Rating . | . . . . . . Parts Repaired . | . . . . . . Time . | . . . . . . Parts Recycled . | . . . . . . Recycled Matter . | . . . . . . Retrieved Matter . | . . . . . . Retrieved Components . | . . . . . . Parts Scanalyzed 1 | . . . 1 . . Part Schematics Acquired . | . . . . . . Parts Damaged 1 | . . . 1 . . Bothacking | -11 -10 -10 -9 -9 -9 ------------ Run | Yrd Mat Min Mat Min Exi Used RIF Installer . | . . . . . . Robots Hacked . | . . . . . . Non-combat . | . . . . . . Combat . | . . . . . . Robot Hacks Applied . | . . . . . . Relay Couplers Released . | . . . . . . Fabnet Peak Effective % . | . . . . . . Robots Rewired . | . . . . . . Allies Hacked . | . . . . . . Hacks Repelled . | . . . . . . Allies | -11 -10 -10 -9 -9 -9 -------- Run | Yrd Mat Min Mat Min Exi Total Allies 2 | . . 2 . . . Largest Group 2 | . . 2 2 . . Highest-Rated Group 41 | . . 41 41 . . Highest-Rated Ally 31 | . . 31 31 . . Total Orders . | . . . . . . Ally Attacks 22 | . . . 22 . . Total Damage 376 | . . . 376 . . Kills 7 | . . . 7 . . Allies Corrupted . | . . . . . . Allies Melted . | . . . . . . Intel | -11 -10 -10 -9 -9 -9 ------- Run | Yrd Mat Min Mat Min Exi Active Infowar (turns) 540 | 15 525 . . . . Seismic 540 | 15 525 . . . . Robot Analysis Total . | . . . . . . Derelict Logs Recovered 4 | . . 2 . 2 . Drone Launches . | . . . . . . Drone Recoveries . | . . . . . . Exploration | -11 -10 -10 -9 -9 -9 ------------- Run | Yrd Mat Min Mat Min Exi Turns Passed 7770 | 118 1414 1276 2055 1065 1842 Spaces Moved 3282 | 68 684 432 762 439 897 Core 27 | 16 . 11 . . . Treads 1451 | 52 250 . 435 365 349 Legs 455 | . . 421 34 . . Wheels 1349 | . 434 . 293 74 548 Hover . | . . . . . . Flight . | . . . . . . Fastest Speed 50 | 50 140 260 135 230 110 Average Speed 204 | 134 168 273 212 238 179 Slowest Speed 800 | 160 240 800 260 240 240 Overloaded Moves . | . . . . . . Propulsion Burnouts . | . . . . . . Robots Hopped . | . . . . . . Potential Cave-ins . | . . . . . . Cave-ins Triggered . | . . . . . . Exploration Rate (%) 67 | 5 94 94 83 65 62 Regions Visited 5 Branch Regions 3 Pre-discovered Areas 5 | . . 2 2 . 1 Known Exits Taken . | . . . . . . Unknown Exits Taken 5 | 1 1 1 1 1 . Scrap Searched 2 | . . 1 . 1 . Spaces Dug 6 | . 6 . . . . Terrain Destroyed 125 | . 66 20 . . 39 Melee . | . . . . . . Projectile . | . . . . . . AOE 125 | . 66 20 . . 39 Terrain Rammed . | . . . . . . Walls Destroyed . | . . . . . . Machines Disabled . | . . . . . . Actions | -11 -10 -10 -9 -9 -9 --------- Run | Yrd Mat Min Mat Min Exi Total 3962 | 89 811 482 1065 452 1063 Wait 174 | . 21 4 139 3 7 Move 3277 | 67 683 431 761 438 897 Hop . | . . . . . . Pick Up 123 | 12 13 10 38 2 48 Fast Attach 3 | 1 . . 2 . . Attach 40 | 6 5 5 9 . 15 Detach . | . . . . . . Swap 25 | . 7 2 9 3 4 Drop 82 | . 3 . 32 3 44 Fire 227 | 3 78 29 67 3 47 Melee . | . . . . . . Ram 3 | . 1 . 2 . . Kick 1 | . . 1 . . . Crush 6 | . . . 6 . . Escape Stasis . | . . . . . . Rewire . | . . . . . . Trap 1 | . . . . . 1 Miscellaneous . | . . . . . . Route ------- -11/Scrapyard -10/Materials (discovered 5 exits: *Mat x3 / [*Min] / [*Sub]) -10/Mines (discovered 3 exits: *Mat x2 / [*Sub]) -9/Materials (discovered 5 exits: *Mat x3 / [*Min x2]) -9/Mines (discovered 2 exits: *Mat / *Exi) -9/Exiles (discovered 1 exit: [*Min]) History --------- Turn | Location | Event 7 | -11/Scrapyard | Discovered new exit (range 16) 119 | -11/Scrapyard | Entered Materials 303 | -10/Materials | Build established: Mutant 351 | -10/Materials | Discovered new exit (range 15) 442 | -10/Materials | Discovered new exit (range 12) 810 | -10/Materials | Discovered new exit (range 16) 896 | -10/Materials | Discovered new exit (range 14) 989 | -10/Materials | Discovered new exit (range 11) 1235 | -10/Materials | Core integrity fell below 50% 1533 | -10/Materials | Entered Mines 1690 | -10/Mines | Discovered new exit (range 7) 1713 | -10/Mines | Discovered new exit (range 12) 1849 | -10/Mines | Found a damaged Exp. Sensor Array with a note attached 1854 | -10/Mines | Found Prototype Device 1863 | -10/Mines | Learned location of Storage (-8) 1894 | -10/Mines | Learned location of Zion (-6) 2025 | -10/Mines | Core integrity fell below 20% 2474 | -10/Mines | Found a hidden stash of uninstalled traps 2534 | -10/Mines | Discovered new exit (range 12) 2809 | -10/Mines | Entered Materials 2809 | -9/Materials | Accompanied by 2 allies 2809 | -9/Materials | Evolved 2 slots: Propulsion x1, Weapon x1 2814 | -9/Materials | Led the pair of lost Derelicts to an unsafe place 3194 | -9/Materials | Build established: Tank 3453 | -9/Materials | Discovered new exit (range 6) 3639 | -9/Materials | Discovered new exit (range 13) 4041 | -9/Materials | Discovered new exit (range 16) 4219 | -9/Materials | Identified Exp. Sensor Array 4594 | -9/Materials | Learned 2 Storage zone layouts 4650 | -9/Materials | Learned Storage trap positions 4736 | -9/Materials | Learned Storage emergency access door positions 4762 | -9/Materials | Learned 4 Recycling zone layouts 4828 | -9/Materials | Discovered new exit (range 16) 4846 | -9/Materials | Identified exit to Materials 4846 | -9/Materials | Learned location of 1 exit from Materials 4864 | -9/Materials | Entered Mines 5067 | -9/Mines | Discovered exit to Materials (range 13) 5303 | -9/Mines | Deemed a non-threat by the Exiles lab entrance 5303 | -9/Mines | Discovered new exit (range 5) 5339 | -9/Mines | Learned 4 Materials zone layouts 5592 | -9/Mines | Received a Rocket Launcher from a helpful Derelict 5743 | -9/Mines | Assembled infested the area 5752 | -9/Mines | Learned Materials trap positions 5929 | -9/Mines | Entered Exiles 5985 | -9/Exiles | Met 8R-AWN 6024 | -9/Exiles | Met EX-HEX 6097 | -9/Exiles | Met EX-BIN 6123 | -9/Exiles | Aligned with FarCom system 6125 | -9/Exiles | Given EX-Vault access code 6180 | -9/Exiles | Opened EX-Vault 6238 | -9/Exiles | Warned to stay clear of 0b10 Research branches 6300 | -9/Exiles | Met EX-DEC 6525 | -9/Exiles | Found Army-in-a-Box 6530 | -9/Exiles | Found YOLO Cannon 6539 | -9/Exiles | Found Chronowheel 6949 | -9/Exiles | Discovered new exit (range 10) 7410 | -9/Exiles | Attacked by the Exiles 7556 | -9/Exiles | Core integrity fell below 50% 7586 | -9/Exiles | Destroyed 8R-AWN 7591 | -9/Exiles | Found Prototype Device 7592 | -9/Exiles | Identified AS-neutralizer No. 17b 7607 | -9/Exiles | Found Prototype Ballistic Gun 7611 | -9/Exiles | Lost 6 parts (1p4n1w) 7613 | -9/Exiles | Found Prototype Ballistic Gun 7614 | -9/Exiles | Identified 8R-AWN's Boregun (x2) 7770 | -9/Exiles | Core integrity fell below 20% 7771 | -9/Exiles | Destroyed by DAS Turret with DAS Cannon Last Messages --------------- 07584_ Penetrated by HV Slug. 07586_ 8R-AWN destroyed. 07589_ Dropped Hrd. Medium Armor Plating. 07591_ Acquired Prototype Device. 07592_ Identified AS-neutralizer No. 17b. 07593_ Dropped AS-neutralizer No. 17b. 07597_ Acquired Prototype Device. 07598_ Identified Gravity Neutralizer. 07599_ Dropped Gravity Neutralizer. 07601_ Acquired Prototype Device. 07602_ Identified Exp. Heat Sink. 07603_ Dropped Exp. Heat Sink. 07607_ Acquired Prototype Ballistic Gun. 07614_ Identified 8R-AWN's Boregun. 07632_ as-08388 destroyed. 07656_ Acquired 1 matter. 07662_ Acquired 9 matter. 07663_ Imp. Assault Rifle destroyed. 07697_ Acquired Rocket Launcher. 07763_ Lgt. Treads destroyed. Map ----- +----------------------------------------------------+ | ????????????????????????????????????""""""?# # | | ????????????????????????????????????"""" ## # | | ???????????????????????????????????#""X" # | | ???????????????????????????????????#" # | | ???????????????????????????????????#" ## # | | ???????????????????????????????????#""""""?# # | | ???????????????????????????????????##"###??# # | | ???????????????????????????????????? ??????# # | | ???????????????????????????????????????????# # | | ??????????????????????????????????????????## # | | ??????????#######?????????????????????????#" | | ####??????#!!! "#?????????????????????????#" | | #""##?????# "#?????????????????????????#" | | #?????# "#?????????????????????????#" | | ##???## ""#????????????##???????????#" | | #####" ""#???????????? """????????#" | | ## ""#????????????" """????????## | | #" # ##??????????"" ?????????# | | #?????????#"" ?????????#" | | ### ## #?????????#"" "#????????#" | | ??### = ####??????? ""?????????#" | | ####"!!* ## #####????" "?????????##" # | | """"" ! = # ##???# #????????##"" # | | !!=%# # # #?### ###?######"" # | | &!=![!!## #####X# #"###""""""" # | | & ][!!##### %%@ """""" " "" | | """" "!! ??#"# %% "" """ " | | ####"# ###?#### % " | | ??# ## #??????### | | ??##?# #????????## | | ?????# #?????????## | | ?????# #??????????## | | ?????# #???????????## | | ?????# #????????????# """""" | | ?????? #????????????# ######""" | | ?????? ????????????? ""##????##### | | ?????? ????????????? """##?????????# | | ?????? ???????????? """##??????????? | | ?????? ???????????? ""#???????????? | | ?????? ?????????????? ##???????????? | | ?????? ?????????????"" ????????????? | | ????????????????????"" ?????????? | | ?????????????????????"" ????????? | | ?????????????????????"""" ???????? | | ??????????????????????? ????????? | | ???????????????????????? ??????????? " | | ?????????????????????????" ????????????##" | | ?????????????????????????????????????????????????? | | ?????????????????????????????????????????????????? | | ?????????????????????????????????????????????????? | +----------------------------------------------------+ Best States ------------- Heat Dissipation 28 Energy Generation 14 Energy Capacity 280 Matter Stores 300 Matter Capacity 300 Sight Range 16 Terrain Scan Density 10 Armor Coverage 225 Evasion (%) 50 Recoil Reduction 3 Salvage Targeting 1 Authchip Count 1 Item Schematics ----------------- None Robot Schematics ------------------ None Fabricated ------------ Nothing Repaired ---------- Nothing Alien Tech Used ----------------- None Achievements -------------- None Challenges ------------ None Game ------ Seed IntegrityLatentThermoblaster Manual? 0 Play Time 00:38:44 Cumulative 174.0 hours Start 2025.09.10 @ 09:01:52 End 2025.09.10 @ 09:41:39 Sessions 1 Manual Loads 0 Difficulty Rogue Special Mode None Game No. 241 Rogue 241 Adventurer 0 Explorer 0 Win Type - Total 2 Types 2/0/0/0/0/0/0/0/0/0 Lore% 72 Gallery% 69 Achievement% 60 Wizard Run 0 Options --------- Layout 0 ASCII 0 Keyboard 0 Movement Mouse Keybinds 0 Fullscreen 1 Font 16/SmallcapsGlow Map View 75x55 Zoom Use 0% Tactical HUD 1 Map Filters NONE Filters NONE Steam 1 RUN: 1a553234-4c5b-495c-89af-2203374ede3a